[Event "4NCL Div 1 2024-25"]
[Site "England"]
[Date "2025.04.06"]
[Round "8.27"]
[White "Bazakutsa, Svyatoslav"]
[Black "Merry, Alan B"]
[Result "1-0"]
[Annotator "TA"]
[ECO "E57"]
[WhiteElo "2486"]
[BlackElo "2417"]
[PlyCount "115"]
[EventDate "2024.11.23"]
[EventType "team-tourn"]
[EventCountry "ENG"]
[SourceTitle "playchess.com"]
[Source "ChessBase"]
[SourceQuality "1"]
[TimeControl "40/6000+30:3000+30"]

{[%evp 20,115,0,0,0,0,0,0,35,35,56,35,29,45,31,10,9,0,6,19,40,34,52,41,54,37,43,41,40,39,31,39,67,72,83,38,146,148,138,142,256,234,279,228,306,253,268,273,271,279,262,254,247,232,255,260,247,258,241,199,184,194,199,181,231,137,141,97,98,97,110,111,300,283,403,403,367,391,414,396,398,378,387,392,1331,493,1537,1443,1349,1389,2849,3656,2404,1937,29977,29978,29988,29989]} 1. d4 {[%emt 0:11:21]} Nf6 {[%emt 0:10:04]} 2. c4 {[%emt 0:00:09]} e6 {[%emt 0:00:04]} 3. Nc3 {[%emt 0:00:09]} Bb4 {[%emt 0:00:04]} 4. e3 {[%emt 0:00:08]} O-O {[%emt 0:00:09]} 5. Bd3 {[%emt 0:00:13]} d5 {[%emt 0:00:12]} 6. Nf3 {[%emt 0:00:11]} dxc4 {[%emt 0:00:23]} 7. Bxc4 {[%emt 0:00:15]} c5 {[%emt 0:00:07]} 8. O-O {[%emt 0:00:37]} cxd4 {[%emt 0:02:53]} 9. exd4 {[%emt 0:00:15]} Nc6 {[%emt 0:04:53]} 10. a3 {[%emt 0:07:19]} Bxc3 {[%emt 0:00:42]} 11. bxc3 {[%emt 0:00:07]} b6 {[%emt 0:02:58] E57: Nimzo-Indian: Rubinstein: Main Line: 7...Nc6 8 a3 dxc4 9 Bxc4 cxd4.} 12. Bd3 {[%emt 0:10:30]} Bb7 {[%emt 0:02:22]} 13. Bb2 {[%emt 0:10:59]} Qd6 {[%emt 0:11:25] The position is equal.} 14. Re1 {[%emt 0:03:41]} Rfd8 {[%emt 0:09:21]} 15. h3 {[%emt 0:05:53]} Rac8 {[%emt 0:12:27]} 16. c4 {[%emt 0:08:56]} Ne7 {[%emt 0:04:40]} 17. a4 {[%emt 0:08:48][%cal Ba3a4,Ba4a5][%mdl 32]} Ng6 {[%emt 0:08:15]} 18. Re3 $146 {[%emt 0:06:20]} (18. a5 Qf4 19. Re3 Nh4 20. Nxh4 Qxh4 21. axb6 axb6 22. Ra7 Bc6 23. Rg3 Ra8 24. Rxa8 Bxa8 {1-0 Salem,A (2656)-Bindrich,F (2590) Wch Rapid Doha 2016 (9)}) 18... Qb4 {[%emt 0:15:15]} 19. Qd2 {[%emt 0:16:21]} Qxd2 {[%emt 0:14:08]} (19... Rxc4 {looks sharper.} 20. Bxc4 Qxc4 21. a5 Ne4) 20. Nxd2 {[%emt 0:00:02]} Ne8 {[%emt 0:01:11]} 21. a5 {[%emt 0:13:17]} Nd6 {[%emt 0:01:38][%cal Ob6b5]} 22. g3 {[%emt 0:00:09]} Ne7 {[%emt 0:01:45]} 23. g4 {[%emt 0:00:02] Dodges Ndf5} Nc6 {[%emt 0:01:17]} 24. axb6 {[%emt 0:00:15]} axb6 {[%emt 0:00:03]} 25. Bf1 {[%emt 0:01:07]} Ra8 {[%emt 0:03:37]} 26. Rxa8 {[%emt 0:02:07]} Bxa8 {[%emt 0:00:38]} 27. c5 {[%emt 0:02:54]} Nc8 {[%emt 0:02:41]} ({Black should try} 27... bxc5 $14 28. dxc5 Nb7) 28. Ra3 $16 {[%emt 0:01:05]} Bb7 {[%emt 0:00:40] [#]} 29. cxb6 {[%emt 0:00:37]} N6e7 {[%emt 0:00:32]} (29... Nxb6 $2 {loses.} 30. Rb3 $18) (29... e5 $16 30. Bg2 exd4 (30... Nxb6 $2 31. Rb3 $18)) 30. Nc4 {[%emt 0:00:48]} h6 {[%emt 0:00:28]} 31. Rb3 {[%emt 0:00:46]} Nd5 {[%emt 0:00:29]} 32. Na5 {[%emt 0:00:14]} Nd6 {[%emt 0:00:25]} 33. Ba3 {[%emt 0:00:01]} Ra8 {[%emt 0:00:26]} 34. Nxb7 {[%emt 0:01:09]} Nxb7 {[%emt 0:00:04]} 35. Bc4 {[%emt 0:00:33]} Na5 {[%emt 0:01:11]} 36. Bxd5 {[%emt 0:00:29]} exd5 $18 {[%emt 0:00:04][%mdl 4096] Endgame KRB-KRN. White is a pawn up.} 37. Rb5 {[%emt 0:00:35]} Nb7 {[%emt 0:00:46]} 38. Be7 {[%emt 0:00:18]} Ra6 {[%emt 0:00:37]} 39. Rxd5 {[%emt 0:00:42]} Rxb6 {[%emt 0:00:05]} 40. Rd7 {[%emt 0:00:13]} f6 {[%emt 0:00:56]} 41. d5 {[%emt 0:28:09]} Rb3 {[%emt 0:29:02]} (41... Rb1+ $142 42. Kg2 Na5) 42. Kg2 {[%emt 0:05:00]} (42. Rc7 $18) 42... Na5 $16 {[%emt 0:00:41]} 43. Rc7 {[%emt 0:04:58] White is more active.} Rd3 {[%emt 0:00:47]} 44. d6 {[%emt 0:00:58]} Kf7 {[%emt 0:00:48]} 45. f4 {[%emt 0:00:39] Black must now prevent f5.} Nb3 $2 {[%emt 0:03:22] A mistake that costs the game.} (45... Rd4 $16 {keeps fighting.}) 46. f5 $18 {[%emt 0:00:58]} Ke8 {[%emt 0:17:45]} (46... Nd2 $142 47. Rc8 g6 48. Rf8+ Kg7 49. Rxf6 gxf5 50. gxf5 (50. Rxf5 Ne4 $18) 50... Nc4) 47. Rc8+ {[%emt 0:04:58]} Kd7 {[%emt 0:00:04]} 48. Rg8 {[%emt 0:02:18]} Nd2 {[%emt 0:00:49]} 49. Rxg7 {[%emt 0:01:07]} Ne4 {[%emt 0:00:07]} 50. Bxf6+ {[%emt 0:01:35]} Kxd6 {[%emt 0:00:04]} 51. Re7 {[%emt 0:01:20]} Nxf6 {[%emt 0:01:56] KRN-KR} (51... Ng5 52. Bxg5 hxg5 53. Re6+ Kd7) 52. Re6+ {[%emt 0:00:01]} Kd5 {[%emt 0:00:12]} (52... Kd7 $142 53. Rxf6 h5) 53. Rxf6 {[%emt 0:00:02]} Ke4 {[%emt 0:00:49]} 54. Rxh6 {[%emt 0:00:25]} Kf4 {[%emt 0:00:04]} 55. f6 {[%emt 0:01:24][%cal Bf5f6,Bf6f7][%mdl 32]} Rd2+ {[%emt 0:00:35] [#]} 56. Kf1 $1 {[%emt 0:00:07] White threatens f7 and mate.} Kg5 {[%emt 0:00:43]} 57. f7 {[%emt 0:00:19]} Rd7 {[%emt 0:00:43]} 58. Rh5+ {[%emt 0:00:15] Weighted Error Value: White=0.09 (flawless) /Black=0.63  Loses game:     	---       	Black=1      Mistake:       	White=1     	Black=6      Inaccurate:     	White=2     	Black=3      OK:         	White=21    	Black=12     Best:        	White=3     	Black=8} 1-0

[Event "4NCL Div 1 2024-25"]
[Site "England"]
[Date "2025.04.06"]
[Round "8.28"]
[White "Tayar, Jonathan"]
[Black "Fitzsimons, David"]
[Result "0-1"]
[Annotator "ChessBase"]
[ECO "C01"]
[WhiteElo "2344"]
[BlackElo "2317"]
[PlyCount "70"]
[EventDate "2024.11.23"]
[EventType "team-tourn"]
[EventCountry "ENG"]
[SourceTitle "playchess.com"]
[Source "ChessBase"]
[SourceQuality "1"]
[TimeControl "40/6000+30:3000+30"]

1. e4 {[%emt 0:10:05]} e6 {[%emt 0:12:48]} 2. d4 {[%emt 0:00:14]} d5 {[%emt 0:00:06]} 3. Nc3 {[%emt 0:01:00]} Nf6 {[%emt 0:00:11]} 4. exd5 {[%emt 0:01:20]} exd5 {[%emt 0:00:11]} 5. Bg5 {[%emt 0:02:01]} Be7 {[%emt 0:00:25]} 6. Bd3 {[%emt 0:00:43]} Nc6 {[%emt 0:00:39]} 7. Nge2 {[%emt 0:00:41]} Nb4 {[%emt 0:00:43]} 8. Ng3 {[%emt 0:03:32]} O-O {[%emt 0:02:19]} 9. O-O {[%emt 0:06:11]} h6 {[%emt 0:02:51]} 10. Bf4 {[%emt 0:03:15]} Bg4 {[%emt 0:03:59]} 11. Qd2 {[%emt 0:02:20]} Nxd3 {[%emt 0:02:02]} 12. Qxd3 {[%emt 0:00:17]} c6 {[%emt 0:04:36]} 13. Rae1 {[%emt 0:07:13]} Re8 {[%emt 0:12:57]} 14. Be5 {[%emt 0:09:13]} Nd7 {[%emt 0:06:28]} 15. f4 {[%emt 0:08:37]} f6 {[%emt 0:08:44]} 16. h3 {[%emt 0:26:10]} fxe5 {[%emt 0:01:55]} 17. hxg4 {[%emt 0:00:31]} exd4 {[%emt 0:04:00]} 18. Nce2 {[%emt 0:00:27]} Bb4 {[%emt 0:01:54]} 19. Rd1 {[%emt 0:01:25]} Re3 {[%emt 0:01:05]} 20. Qf5 {[%emt 0:01:52]} Qe7 {[%emt 0:01:32]} 21. g5 {[%emt 0:01:32]} Rf8 {[%emt 0:01:56]} 22. Qg4 {[%emt 0:00:08]} d3 {[%emt 0:08:43]} 23. Rxd3 {[%emt 0:01:37]} Bc5 {[%emt 0:02:26]} 24. Rxe3 {[%emt 0:08:22]} Bxe3+ {[%emt 0:00:12]} 25. Kh2 {[%emt 0:02:53]} hxg5 {[%emt 0:02:04]} 26. Nf5 {[%emt 0:03:37]} Qe6 {[%emt 0:00:52]} 27. fxg5 {[%emt 0:01:27]} Ne5 {[%emt 0:03:10]} 28. Qh3 {[%emt 0:01:35]} Bxg5 {[%emt 0:01:00]} 29. Ned4 {[%emt 0:00:49]} Qg6 {[%emt 0:03:29]} 30. b4 {[%emt 0:01:17]} Re8 {[%emt 0:02:29]} 31. Kg1 {[%emt 0:01:25]} Nc4 {[%emt 0:02:14]} 32. Rf3 {[%emt 0:00:33]} Nd2 {[%emt 0:02:52]} 33. Rg3 {[%emt 0:00:12]} Qf6 {[%emt 0:01:36]} 34. Qh5 {[%emt 0:02:01]} Re1+ {[%emt 0:01:20]} 35. Kf2 {[%emt 0:00:04]} Qe5 {[%emt 0:05:38]} 0-1

[Event "4NCL Div 1 2024-25"]
[Site "England"]
[Date "2025.04.06"]
[Round "8.29"]
[White "Willow, Jonah B"]
[Black "Taylor, Martin R"]
[Result "1-0"]
[Annotator "RC"]
[ECO "B04"]
[WhiteElo "2454"]
[BlackElo "2353"]
[PlyCount "111"]
[EventDate "2024.11.23"]
[EventType "team-tourn"]
[EventCountry "ENG"]
[SourceTitle "playchess.com"]
[Source "ChessBase"]
[SourceQuality "1"]
[TimeControl "40/6000+30:3000+30"]

1. e4 {[%emt 0:12:29]} Nf6 {[%emt 0:10:07]} 2. e5 {[%emt 0:00:31]} Nd5 {[%emt 0:00:10]} 3. d4 {[%emt 0:00:18]} d6 {[%emt 0:00:08]} 4. c4 {[%emt 0:00:31]} Nb6 {[%emt 0:00:11]} 5. exd6 {[%emt 0:00:25]} cxd6 {[%emt 0:00:22]} 6. Nc3 {[%emt 0:00:37]} g6 {[%emt 0:00:13]} 7. Be2 {[%emt 0:00:15]} Bg7 {[%emt 0:00:57]} 8. h3 {[%emt 0:00:22]} O-O {[%emt 0:02:01]} 9. Nf3 {[%emt 0:00:32]} Nc6 {[%emt 0:01:31]} 10. O-O {[%emt 0:00:06]} Bf5 {[%emt 0:05:27]} 11. d5 {[%emt 0:00:14]} Nb4 {[%emt 0:18:24]} 12. a3 {[%emt 0:05:38]} Na6 {[%emt 0:01:59]} 13. Nd4 {[%emt 0:00:50]} Bd7 {[%emt 0:12:16]} 14. Be3 {[%emt 0:13:05]} Nc5 {[%emt 0:05:52]} 15. b4 {[%emt 0:05:12]} Nca4 {[%emt 0:03:47]} 16. Nxa4 {[%emt 0:02:54]} Nxa4 {[%emt 0:03:17]} 17. Rc1 {[%emt 0:01:58]} Rc8 {[%emt 0:27:27]} 18. Qd2 {[%emt 0:02:38]} e5 {[%emt 0:03:56]} 19. dxe6 {[%emt 0:04:54]} fxe6 {[%emt 0:00:33]} 20. Bg4 {[%emt 0:08:10]} Re8 {[%emt 0:07:10]} 21. Rfe1 {[%emt 0:03:18]} Qe7 {[%emt 0:01:23]} 22. Bg5 {[%emt 0:02:52]} Qf7 {[%emt 0:00:33]} 23. Re3 {[%emt 0:02:45]} Kh8 {[%emt 0:01:53]} 24. Ne2 {[%emt 0:16:33]} h5 {[%emt 0:01:08]} 25. Bf3 {[%emt 0:03:14]} Nb6 {[%emt 0:00:17]} 26. c5 {[%emt 0:04:21]} dxc5 {[%emt 0:00:15]} 27. Bxb7 {[%emt 0:01:00]} cxb4 {[%emt 0:01:43]} 28. Bxc8 {[%emt 0:00:16]} Bxc8 {[%emt 0:00:08]} 29. Rf3 {[%emt 0:01:04]} Qd7 {[%emt 0:01:04]} 30. Qxd7 {[%emt 0:00:40]} Nxd7 {[%emt 0:00:28]} 31. axb4 {[%emt 0:00:13]} Ne5 {[%emt 0:00:11]} 32. Ra3 {[%emt 0:00:33]} a6 {[%emt 0:00:49]} 33. Rc7 {[%emt 0:00:29]} Kg8 {[%emt 0:00:11]} 34. Be3 {[%emt 0:01:10]} Nf7 {[%emt 0:00:37]} 35. Bd4 {[%emt 0:03:26]} e5 {[%emt 0:00:30]} 36. Be3 {[%emt 0:02:29]} Nd6 {[%emt 0:00:47]} 37. Rc6 {[%emt 0:01:24]} Nb5 {[%emt 0:00:22]} 38. Ra1 {[%emt 0:00:18]} Kf7 {[%emt 0:00:23]} 39. Bg5 {[%emt 0:04:51]} Bf8 {[%emt 0:00:35]} 40. Rac1 {[%emt 0:01:02]} Bd7 {[%emt 0:00:35]} 41. Rxa6 {[%emt 0:50:56]} Bxb4 {[%emt 0:22:00]} 42. Rd1 {[%emt 0:00:00]} Bf5 {[%emt 0:11:27]} 43. Ng3 {[%emt 0:00:00]} Bc8 {[%emt 0:02:27]} 44. Rb6 {[%emt 0:00:00]} Nc3 {[%emt 0:01:00]} 45. Rc1 {[%emt 0:00:00]} Nd5 {[%emt 0:01:02]} 46. Rb5 {[%emt 0:00:00]} Be6 {[%emt 0:00:28]} 47. Ne4 {[%emt 0:00:00]} Be7 {[%emt 0:06:47]} 48. Rb7 {[%emt 0:00:00]} Kf8 {[%emt 0:00:14]} 49. Rd1 {[%emt 0:00:00]} Nf4 {[%emt 0:02:56]} 50. Bxe7+ {[%emt 0:03:33]} Rxe7 {[%emt 0:00:07]} 51. Rd8+ {[%emt 0:00:09]} Re8 {[%emt 0:00:49]} 52. Rxe8+ {[%emt 0:00:25]} Kxe8 {[%emt 0:00:04]} 53. Rb5 {[%emt 0:00:34]} Nd3 {[%emt 0:01:08]} 54. Nc5 {[%emt 0:00:29]} Bc4 {[%emt 0:00:24]} 55. Ra5 {[%emt 0:01:39]} Nf4 {[%emt 0:00:29]} 56. Ne4 {[%emt 0:00:10]} 1-0

[Event "4NCL Div 1 2024-25"]
[Site "England"]
[Date "2025.04.06"]
[Round "8.30"]
[White "Cox, John J"]
[Black "Arakhamia-Grant, Ketevan"]
[Result "0-1"]
[Annotator "ChessBase"]
[ECO "A36"]
[WhiteElo "2259"]
[BlackElo "2253"]
[PlyCount "50"]
[EventDate "2024.11.23"]
[EventType "team-tourn"]
[EventCountry "ENG"]
[SourceTitle "playchess.com"]
[Source "ChessBase"]
[SourceQuality "1"]
[TimeControl "40/6000+30:3000+30"]

1. c4 {[%emt 0:10:02]} c5 {[%emt 0:14:13]} 2. Nc3 {[%emt 0:00:12]} Nc6 {[%emt 0:00:07]} 3. g3 {[%emt 0:00:06]} g6 {[%emt 0:00:05]} 4. Bg2 {[%emt 0:00:03]} Bg7 {[%emt 0:00:04]} 5. e3 {[%emt 0:04:35]} d6 {[%emt 0:01:19]} 6. Nge2 {[%emt 0:00:15]} e5 {[%emt 0:00:36]} 7. a3 {[%emt 0:01:29]} Nge7 {[%emt 0:03:23]} 8. O-O {[%emt 0:02:37]} O-O {[%emt 0:01:57]} 9. b4 {[%emt 0:05:42]} cxb4 {[%emt 0:01:53]} 10. axb4 {[%emt 0:00:07]} Nxb4 {[%emt 0:00:22]} 11. Ba3 {[%emt 0:01:23]} Nbc6 {[%emt 0:01:22]} 12. Nb5 {[%emt 0:07:08]} Nf5 {[%emt 0:24:12]} 13. e4 {[%emt 0:04:48]} a6 {[%emt 0:07:37]} 14. exf5 {[%emt 0:01:29]} axb5 {[%emt 0:00:06]} 15. cxb5 {[%emt 0:00:43]} Ne7 {[%emt 0:01:27]} 16. fxg6 {[%emt 0:04:37]} hxg6 {[%emt 0:00:51]} 17. Nc3 {[%emt 0:01:31]} Nf5 {[%emt 0:10:10]} 18. Bb4 {[%emt 0:06:02]} Rxa1 {[%emt 0:00:54]} 19. Qxa1 {[%emt 0:00:03]} Nd4 {[%emt 0:03:08]} 20. Qa7 {[%emt 0:05:04]} b6 {[%emt 0:00:29]} 21. Bc6 {[%emt 0:19:53]} Bh3 {[%emt 0:08:42]} 22. Ra1 {[%emt 0:07:09]} Nxc6 {[%emt 0:04:06]} 23. bxc6 {[%emt 0:00:06]} Qf6 {[%emt 0:00:43]} 24. f4 {[%emt 0:07:03]} exf4 {[%emt 0:01:31]} 25. Qxb6 {[%emt 0:00:27]} Qd4+ {[%emt 0:08:16]} 0-1

[Event "4NCL Div 1 2024-25"]
[Site "England"]
[Date "2025.04.06"]
[Round "8.31"]
[White "O`Donnell, Conor"]
[Black "Sowray, Peter J"]
[Result "1/2-1/2"]
[Annotator "ChessBase"]
[ECO "B06"]
[WhiteElo "2293"]
[BlackElo "2205"]
[PlyCount "83"]
[EventDate "2024.11.23"]
[EventType "team-tourn"]
[EventCountry "ENG"]
[SourceTitle "playchess.com"]
[Source "ChessBase"]
[SourceQuality "1"]
[TimeControl "40/6000+30:3000+30"]

1. d4 {[%emt 0:15:44]} g6 {[%emt 0:10:08]} 2. e4 {[%emt 0:00:27]} Bg7 {[%emt 0:00:08]} 3. Nc3 {[%emt 0:00:08]} d6 {[%emt 0:00:07]} 4. f4 {[%emt 0:00:06]} a6 {[%emt 0:00:31]} 5. Nf3 {[%emt 0:02:22]} b5 {[%emt 0:00:24]} 6. a4 {[%emt 0:01:31]} b4 {[%emt 0:02:34]} 7. Ne2 {[%emt 0:00:04]} Nd7 {[%emt 0:04:58]} 8. Ng3 {[%emt 0:01:46]} c5 {[%emt 0:02:45]} 9. c3 {[%emt 0:05:37]} a5 {[%emt 0:04:26]} 10. e5 {[%emt 0:03:39]} Nh6 {[%emt 0:05:43]} 11. Bd3 {[%emt 0:04:45]} Qb6 {[%emt 0:05:01]} 12. exd6 {[%emt 0:22:46]} O-O {[%emt 0:08:05]} 13. dxe7 {[%emt 0:01:56]} Re8 {[%emt 0:00:05]} 14. O-O {[%emt 0:01:52]} cxd4 {[%emt 0:05:44]} 15. cxd4 {[%emt 0:01:11]} Rxe7 {[%emt 0:04:44]} 16. f5 {[%emt 0:04:52]} Ng4 {[%emt 0:16:28]} 17. fxg6 {[%emt 0:09:04]} hxg6 {[%emt 0:03:29]} 18. Bg5 {[%emt 0:05:19]} Ndf6 {[%emt 0:05:07]} 19. Qd2 {[%emt 0:03:27]} Bb7 {[%emt 0:01:12]} 20. Kh1 {[%emt 0:04:54]} Rd7 {[%emt 0:14:26]} 21. Bb5 {[%emt 0:02:25]} Rdd8 {[%emt 0:03:56]} 22. Rad1 {[%emt 0:01:20]} Kh7 {[%emt 0:02:51]} 23. Qf4 {[%emt 0:02:07]} Rac8 {[%emt 0:00:57]} 24. h3 {[%emt 0:02:30]} Nh6 {[%emt 0:00:27]} 25. Ne5 {[%emt 0:03:24]} Rc2 {[%emt 0:02:52]} 26. Bxf6 {[%emt 0:06:41]} Rxg2 {[%emt 0:01:19]} 27. Ne4 {[%emt 0:00:40]} Rxb2 {[%emt 0:00:35]} 28. Bxd8 {[%emt 0:01:14]} Qxd8 {[%emt 0:00:21]} 29. Nf3 {[%emt 0:01:19]} Nf5 {[%emt 0:00:32]} 30. Kg1 {[%emt 0:01:11]} Bh6 {[%emt 0:00:43]} 31. Nfg5+ {[%emt 0:00:34]} Kg8 {[%emt 0:01:15]} 32. d5 {[%emt 0:00:54]} Qb6+ {[%emt 0:00:42]} 33. Kh1 {[%emt 0:00:35]} f6 {[%emt 0:00:18]} 34. Qb8+ {[%emt 0:00:12]} Kg7 {[%emt 0:00:40]} 35. Qe8 {[%emt 0:00:48]} Bxg5 {[%emt 0:01:28]} 36. Rxf5 {[%emt 0:00:02]} gxf5 {[%emt 0:01:25]} 37. Nxg5 {[%emt 0:00:43]} fxg5 {[%emt 0:00:20]} 38. Qe5+ {[%emt 0:00:42]} Qf6 {[%emt 0:00:11]} 39. Qc7+ {[%emt 0:00:25]} Qf7 {[%emt 0:02:15]} 40. Qe5+ {[%emt 0:00:03]} Qf6 {[%emt 0:00:05]} 41. Qc7+ {[%emt 0:22:35]} Qf7 {[%emt 0:23:43]} 42. Qe5+ {[%emt 0:00:37]} 1/2-1/2

[Event "4NCL Div 1 2024-25"]
[Site "England"]
[Date "2025.04.06"]
[Round "8.32"]
[White "Bhatia, Kanwal K"]
[Black "Liu, Tianyi (Jack)"]
[Result "0-1"]
[Annotator "ChessBase"]
[ECO "B22"]
[WhiteElo "1976"]
[BlackElo "2120"]
[PlyCount "102"]
[EventDate "2024.11.23"]
[EventType "team-tourn"]
[EventCountry "ENG"]
[SourceTitle "playchess.com"]
[Source "ChessBase"]
[SourceQuality "1"]
[TimeControl "40/6000+30:3000+30"]

1. e4 {[%emt 0:10:03]} c5 {[%emt 0:12:42]} 2. c3 {[%emt 0:00:04]} Nf6 {[%emt 0:00:09]} 3. e5 {[%emt 0:00:07]} Nd5 {[%emt 0:00:04]} 4. d4 {[%emt 0:00:09]} cxd4 {[%emt 0:00:06]} 5. Nf3 {[%emt 0:00:30]} Nc6 {[%emt 0:00:22]} 6. cxd4 {[%emt 0:00:45]} d6 {[%emt 0:00:09]} 7. Bc4 {[%emt 0:00:58]} Nb6 {[%emt 0:00:05]} 8. Bb3 {[%emt 0:00:08]} dxe5 {[%emt 0:00:07]} 9. d5 {[%emt 0:01:04]} Na5 {[%emt 0:00:12]} 10. Nc3 {[%emt 0:00:37]} Nxb3 {[%emt 0:00:15]} 11. Qxb3 {[%emt 0:00:48]} e6 {[%emt 0:00:18]} 12. Nxe5 {[%emt 0:02:41]} Be7 {[%emt 0:00:34]} 13. Qb5+ {[%emt 0:01:52]} Kf8 {[%emt 0:00:19]} 14. Be3 {[%emt 0:06:44]} Nxd5 {[%emt 0:29:57]} 15. Rd1 {[%emt 0:05:27]} Qc7 {[%emt 0:06:13]} 16. Bd4 {[%emt 0:01:54]} f6 {[%emt 0:07:17]} 17. Nf3 {[%emt 0:13:56]} Qc6 {[%emt 0:04:28]} 18. Qb3 {[%emt 0:05:08]} Nxc3 {[%emt 0:05:00]} 19. Bxc3 {[%emt 0:05:05]} Qe4+ {[%emt 0:07:02]} 20. Kf1 {[%emt 0:00:16]} e5 {[%emt 0:01:20]} 21. h3 {[%emt 0:03:13]} Bf5 {[%emt 0:05:49]} 22. Rd2 {[%emt 0:15:42]} g6 {[%emt 0:11:11]} 23. Kg1 {[%emt 0:02:11]} Qc6 {[%emt 0:04:30]} 24. Kh2 {[%emt 0:02:06]} Be6 {[%emt 0:01:50]} 25. Qd1 {[%emt 0:00:14]} Kg7 {[%emt 0:01:07]} 26. Re1 {[%emt 0:05:48]} Rhd8 {[%emt 0:00:30]} 27. Kg1 {[%emt 0:03:51]} Kg8 {[%emt 0:01:32]} 28. Qe2 {[%emt 0:01:19]} Rxd2 {[%emt 0:03:07]} 29. Qxd2 {[%emt 0:01:58]} Rd8 {[%emt 0:00:50]} 30. Qh6 {[%emt 0:01:24]} Bd5 {[%emt 0:01:25]} 31. Nh4 {[%emt 0:01:21]} Bf8 {[%emt 0:00:54]} 32. Qe3 {[%emt 0:00:38]} b6 {[%emt 0:01:46]} 33. Qg3 {[%emt 0:01:01]} Bg7 {[%emt 0:02:22]} 34. a3 {[%emt 0:04:30]} Qa4 {[%emt 0:01:07]} 35. Re3 {[%emt 0:06:34]} Bc6 {[%emt 0:01:04]} 36. Bb4 {[%emt 0:02:50]} Qd1+ {[%emt 0:01:25]} 37. Re1 {[%emt 0:01:31]} Qd7 {[%emt 0:01:15]} 38. Bc3 {[%emt 0:02:01]} Bb7 {[%emt 0:00:29]} 39. Kh2 {[%emt 0:02:28]} Bh6 {[%emt 0:00:33]} 40. Kg1 {[%emt 0:00:32]} Qa4 {[%emt 0:00:30]} 41. Nf5 {[%emt 0:27:11]} Bf4 {[%emt 0:29:31]} 42. Qg4 {[%emt 0:01:26]} Qd7 {[%emt 0:03:08]} 43. Ne3 {[%emt 0:09:16]} Qc6 {[%emt 0:01:35]} 44. h4 {[%emt 0:03:11]} Bc8 {[%emt 0:03:06]} 45. Qe2 {[%emt 0:00:39]} h5 {[%emt 0:01:04]} 46. Rc1 {[%emt 0:07:08]} Bb7 {[%emt 0:03:28]} 47. Bd2 {[%emt 0:01:47]} Qe4 {[%emt 0:01:42]} 48. Rc4 {[%emt 0:01:26]} Ba6 {[%emt 0:07:05]} 49. Rxe4 {[%emt 0:01:19]} Bxe2 {[%emt 0:00:04]} 50. Nc4 {[%emt 0:02:00]} Bxc4 {[%emt 0:00:57]} 51. Bxf4 {[%emt 0:00:13]} Bd3 {[%emt 0:00:04]} 0-1

[Event "4NCL Div 1 2024-25"]
[Site "England"]
[Date "2025.04.06"]
[Round "8.33"]
[White "Williams, Simon K"]
[Black "Rendle, Thomas E"]
[Result "1-0"]
[Annotator "ChessBase"]
[ECO "D15"]
[WhiteElo "2442"]
[BlackElo "2383"]
[PlyCount "41"]
[EventDate "2024.11.23"]
[EventType "team-tourn"]
[EventCountry "ENG"]
[SourceTitle "playchess.com"]
[Source "ChessBase"]
[SourceQuality "1"]
[TimeControl "40/6000+30:3000+30"]

1. Nf3 {[%emt 0:10:27]} d5 {[%emt 0:10:35]} 2. d4 {[%emt 0:00:33]} Nf6 {[%emt 0:00:36]} 3. c4 {[%emt 0:00:32]} c6 {[%emt 0:00:09]} 4. Nc3 {[%emt 0:00:45]} dxc4 {[%emt 0:00:57]} 5. e4 {[%emt 0:00:13]} b5 {[%emt 0:00:11]} 6. Be2 {[%emt 0:00:18]} e6 {[%emt 0:01:34]} 7. a4 {[%emt 0:01:50]} Bb7 {[%emt 0:02:35]} 8. O-O {[%emt 0:03:45]} a6 {[%emt 0:04:37]} 9. Bg5 {[%emt 0:12:28]} Nbd7 {[%emt 0:06:52]} 10. d5 {[%emt 0:21:46]} Qb6 {[%emt 0:14:15]} 11. dxe6 {[%emt 0:02:37]} fxe6 {[%emt 0:01:10]} 12. e5 {[%emt 0:01:05]} Nd5 {[%emt 0:01:35]} 13. Nd4 {[%emt 0:00:17]} Nc5 {[%emt 0:14:10]} 14. Bg4 {[%emt 0:05:08]} h6 {[%emt 0:21:57]} 15. Be3 {[%emt 0:11:38]} Nxe3 {[%emt 0:05:12]} 16. Bh5+ {[%emt 0:00:06]} Kd7 {[%emt 0:00:10]} 17. fxe3 {[%emt 0:00:45]} Nd3 {[%emt 0:00:07]} 18. Qg4 {[%emt 0:01:53]} c5 {[%emt 0:02:43]} 19. Rf7+ {[%emt 0:04:12]} Kc8 {[%emt 0:01:13]} 20. Raf1 {[%emt 0:01:33]} Be7 {[%emt 0:03:42]} 21. Rxe7 {[%emt 0:01:29]} 1-0